Cogmind - Beta 12 @@@ ROGUE MODE // 2023.05.28 @ 14:20:53 Player: Mr Goldstein Result: Destroyed by B-75 Beast with Magnetic Acceleration Cannon Performance ------------- Evolutions (1) 500 Regions Visited (5) 1000 Robots Destroyed (0) 0 Value Destroyed (0) 0 Prototype IDs (0) 0 Alien Tech Used (0) 0 Bonus (1123) 1123 TOTAL SCORE: 2623 Bonus ------- Pacifist 200 Follower Combat Kills 323 Met Imprinter 300 Was Imprinted 300 Cogmind --------- Core Integrity 0/400 Matter 300/300 Energy 99/100 System Corruption 0% Temperature Cool (12) Movement Core (50) Location -6/Proximity Caves Parts ------- > --- POWER (1) -------- (None) > --- PROPULSION (3) --- (None) > --- UTILITY (3) ------ Makeshift Hacking Suite Makeshift System Shield > --- WEAPON (2) ------- (None) > --- INVENTORY (5) ---- Cesium-ion Thruster 0b10 Decoder Chip [Looter] 0b10 Decoder Chip [Scout] Makeshift Axe CR-A16's Pointy Stick Peak State ------------ > --- POWER ------------ Makeshift Power Source > --- PROPULSION ------- Backup Propulsion III Backup Propulsion III > --- UTILITY ---------- Tactical Coordination Suite Makeshift Hacking Suite Makeshift System Shield > --- WEAPON ----------- (None) > --- INVENTORY -------- Cesium-ion Thruster 0b10 Decoder Chip [Looter] 0b10 Decoder Chip [Scout] Makeshift Axe CR-A16's Pointy Stick [Rating: 25] Favorites ----------- Power Makeshift Power Source Engine Makeshift Power Source Propulsion Backup Propulsion III Hover Unit Backup Propulsion III Utility Makeshift Hacking Suite Device Tactical Coordination Suite Hackware Makeshift Hacking Suite Weapon None Build | -11 -10 -9 -9 -7 -6 ------- Run | Jun Mat Mat Min Zio Pro Slots Evolved 2 | . . 2 . . . Power . | . . . . . . Propulsion 1 | . . 1 . . . Utility 1 | . . 1 . . . Weapon . | . . . . . . Parts Attached 4 | . . . . 4 . Power 1 | . . . . 1 . Engine 1 | . . . . 1 . Core . | . . . . . . Reactor . | . . . . . . Propulsion . | . . . . . . Treads . | . . . . . . Leg . | . . . . . . Wheel . | . . . . . . Hover . | . . . . . . Flight . | . . . . . . Utility 3 | . . . . 3 . Device 1 | . . . . 1 . Storage . | . . . . . . Processor . | . . . . . . Hackware 2 | . . . . 2 . Protection . | . . . . . . Artifact . | . . . . . . Weapon . | . . . . . . Energy Gun . | . . . . . . Energy Cannon . | . . . . . . Ballistic Gun . | . . . . . . Ballistic Cannon . | . . . . . . Launcher . | . . . . . . Special Weapon . | . . . . . . Impact Weapon . | . . . . . . Slashing Weapon . | . . . . . . Piercing Weapon . | . . . . . . Special Melee Weapon . | . . . . . . Unidentified Prototypes . | . . . . . . Parts Lost 2 | . . . . . 2 Power . | . . . . . . Propulsion 2 | . . . . . 2 Utility . | . . . . . . Weapon . | . . . . . . Highest Loss Streak 2 | . . . . . 2 To Critical Strikes . | . . . . . . Average Slot Usage (%) 48 | . . . . 48 63 Engine 6 | . . . . 5 10 Hover 19 | . . . . 20 20 Device 6 | . . . . 5 10 Hackware 17 | . . . . 17 22 Naked Turns 95 | . 25 27 14 29 . Heaviest Build 9 | . . . . 9 9 Greatest Support 16 | 3 3 3 3 16 16 Greatest Overweight (x) 1 | . . . . . 1 Average Overweight (x) . | . . . . . . Largest Inventory Capacity 5 | 5 5 5 5 5 5 Average Capacity 5 | 5 5 5 5 5 5 Most Carried 5 | . . . . 4 5 Average Carried 3 | . . . . 2 4 Final Capacity 5 | 5 5 5 5 5 5 Final Carried 5 | . . . . 4 5 Class Distribution -------------------- 66% | Hacker-Mutant 33% | Mutant Dominant Class ---------------- Mutant | -10/Materials Mutant | -9/Materials Mutant | -9/Mines Hacker-Mutant | -7/Zion Hacker-Mutant | -6/Proximity Caves Resources | -11 -10 -9 -9 -7 -6 ----------- Run | Jun Mat Mat Min Zio Pro Matter Collected 240 | 172 . . . 68 . Remotely . | . . . . . . Salvage Created . | . . . . . . Parts . | . . . . . . Haulers Intercepted . | . . . . . . Recyclers Shooed . | . . . . . . Parts Field Recycled . | . . . . . . Retrieved Matter . | . . . . . . Parts Self-Destructed 17 | . . . . 7 10 Prevented . | . . . . . . Kills | -11 -10 -9 -9 -7 -6 ------- Run | Jun Mat Mat Min Zio Pro Combat Hostiles Destroyed . | . . . . . . Classes Destroyed . | . . . . . . Best Kill Streak . | . . . . . . Combat Bots Only . | . . . . . . Max Kills in Single Turn . | . . . . . . Gunslinging . | . . . . . . Exploded . | . . . . . . Melee . | . . . . . . Uniques/NPCs Destroyed . | . . . . . . Combat | -11 -10 -9 -9 -7 -6 -------- Run | Jun Mat Mat Min Zio Pro Damage Taken 556 | . 32 . . . 524 Core 448 | . 32 . . . 416 Absorbed by Shields . | . . . . . . Core Remaining (%) 93 | 100 87 . . . . Volleys Fired . | . . . . . . Largest . | . . . . . . Hottest . | . . . . . . Shots Fired . | . . . . . . Gun . | . . . . . . Cannon . | . . . . . . Launcher . | . . . . . . Special . | . . . . . . Kinetic . | . . . . . . Thermal . | . . . . . . Explosive . | . . . . . . Electromagnetic . | . . . . . . Robot Hit Streak . | . . . . . . Robot Miss Streak . | . . . . . . Penetration Max . | . . . . . . Secondary Targets . | . . . . . . Shots Hit Robots . | . . . . . . Core Hits . | . . . . . . Critical Kills . | . . . . . . Critical Parts Destroyed . | . . . . . . Critical Strikes . | . . . . . . Melee Attacks . | . . . . . . Impact . | . . . . . . Slashing . | . . . . . . Piercing . | . . . . . . Sneak Attacks . | . . . . . . Combat Hostiles . | . . . . . . Follow-up Attacks . | . . . . . . Damage Inflicted . | . . . . . . Guns . | . . . . . . Cannons . | . . . . . . Explosions . | . . . . . . Melee . | . . . . . . Ramming . | . . . . . . Kinetic . | . . . . . . Thermal . | . . . . . . Explosive . | . . . . . . Electromagnetic . | . . . . . . Impact . | . . . . . . Slashing . | . . . . . . Piercing . | . . . . . . Highest Corruption . | . . . . . . Average Corruption . | . . . . . . Corruption Purged . | . . . . . . Corruption Blocked . | . . . . . . Overload Shots . | . . . . . . Overflow Damage . | . . . . . . Projectiles . | . . . . . . Explosions . | . . . . . . Melee . | . . . . . . Knockbacks . | . . . . . . Impact . | . . . . . . Kinetic . | . . . . . . Secondary . | . . . . . . Self-Inflicted Damage . | . . . . . . Shots . | . . . . . . Rammed . | . . . . . . Targets Rammed . | . . . . . . Kicked . | . . . . . . Crushed . | . . . . . . Highest Temperature 25 | . . . . . 25 Average Temperature 14 | . . . . . 14 Received Heat Transfer 153 | . 18 . . . 135 Siege Activations . | . . . . . . Robots Corrupted . | . . . . . . Combat Hostiles . | . . . . . . Parts Fried . | . . . . . . Impact Corruptions . | . . . . . . Robots Melted . | . . . . . . Combat Hostiles . | . . . . . . Parts Melted . | . . . . . . Heat Transferred . | . . . . . . Parts Sabotaged . | . . . . . . Parts Stolen . | . . . . . . Parts Stripped . | . . . . . . Power Chain Reactions . | . . . . . . Missiles Intercepted . | . . . . . . Alert | -11 -10 -9 -9 -7 -6 ------- Run | Jun Mat Mat Min Zio Pro Peak Influence 28 | . 15 28 10 . . Initial 10 | . . 5 10 . . Average 7 | . 4 12 10 . . Maximum Alert Level . | . . . . . . Low Security (%) 100 | 100 100 100 100 . . Level 1 . | . . . . . . Level 2 . | . . . . . . Level 3 . | . . . . . . Level 4 . | . . . . . . Level 5 . | . . . . . . High Security . | . . . . . . Max Security . | . . . . . . Squads Dispatched 1 | . 1 . . . . Investigation . | . . . . . . Extermination . | . . . . . . Reinforcement 1 | . 1 . . . . Assault . | . . . . . . Garrison . | . . . . . . Intercept . | . . . . . . Searches Triggered . | . . . . . . Construction Impeded . | . . . . . . Haulers Reinforced . | . . . . . . Active Scanning Responses . | . . . . . . Cargo Convoy Interrupts . | . . . . . . Stealth | -11 -10 -9 -9 -7 -6 --------- Run | Jun Mat Mat Min Zio Pro Distress Signals 1 | . 1 . . . . Communications Jammed . | . . . . . . Distress Signals . | . . . . . . Times Spotted 26 | . 4 2 . . 20 Peak Tracking Total 10 | . 4 2 . . 10 Tactical Retreats 2 | . . . . . 2 Traps | -11 -10 -9 -9 -7 -6 ------- Run | Jun Mat Mat Min Zio Pro Traps Triggered . | . . . . . . Indirectly . | . . . . . . Trap Hack Attempts . | . . . . . . Triggered . | . . . . . . Disarmed . | . . . . . . Reprogrammed . | . . . . . . Reused . | . . . . . . Traps Extracted . | . . . . . . Installed . | . . . . . . Triggered . | . . . . . . Machines | -11 -10 -9 -9 -7 -6 ---------- Run | Jun Mat Mat Min Zio Pro Machines Disabled . | . . . . . . Max in Single Turn . | . . . . . . Machines Repaired . | . . . . . . Machines Sabotaged . | . . . . . . Overloaded Fab Kills . | . . . . . . Hacking | -11 -10 -9 -9 -7 -6 --------- Run | Jun Mat Mat Min Zio Pro Machines Accessed 1 | . . 1 . . . Terminals 1 | . . 1 . . . Fabricators . | . . . . . . Repair Stations . | . . . . . . Recycling Units . | . . . . . . Scanalyzers . | . . . . . . Garrison Access . | . . . . . . Total Hacks 1 | . . 1 . . . Successful 1 | . . 1 . . . Failed . | . . . . . . Catastrophic . | . . . . . . Database Lockouts . | . . . . . . Manual 1 | . . 1 . . . Terminals 1 | . . 1 . . . Fabricators . | . . . . . . Repair Stations . | . . . . . . Recycling Units . | . . . . . . Scanalyzers . | . . . . . . Garrison Access . | . . . . . . Terminal Hacks 1 | . . 1 . . . Branch Access Points 1 | . . 1 . . . Fabricator Hacks . | . . . . . . Repair Station Hacks . | . . . . . . Recycling Unit Hacks . | . . . . . . Scanalyzer . | . . . . . . Garrison Access Hacks . | . . . . . . Unauthorized Hacks . | . . . . . . Terminals . | . . . . . . Fabricators . | . . . . . . Repair Stations . | . . . . . . Recycling Units . | . . . . . . Scanalyzers . | . . . . . . Garrison Access . | . . . . . . Data Cores Recovered . | . . . . . . Used . | . . . . . . Hacking Detections 1 | . . 1 . . . Full Trace Events . | . . . . . . Feedback Events . | . . . . . . Feedback Blocked . | . . . . . . Robot Schematics Acquired 3 | . . . . 3 . Robots Built . | . . . . . . Authchips . | . . . . . . Time . | . . . . . . Total Robot Build Rating . | . . . . . . Part Schematics Acquired 14 | . . . . 14 . Parts Built . | . . . . . . Authchips . | . . . . . . Time . | . . . . . . Total Part Build Rating . | . . . . . . Parts Repaired . | . . . . . . Time . | . . . . . . Parts Recycled . | . . . . . . Recycled Matter . | . . . . . . Retrieved Matter . | . . . . . . Retrieved Components . | . . . . . . Parts Scanalyzed . | . . . . . . Part Schematics Acquired . | . . . . . . Parts Damaged . | . . . . . . Bothacking | -11 -10 -9 -9 -7 -6 ------------ Run | Jun Mat Mat Min Zio Pro Used RIF Installer . | . . . . . . Robots Hacked . | . . . . . . Non-combat . | . . . . . . Combat . | . . . . . . Robot Hacks Applied . | . . . . . . Relay Couplers Released . | . . . . . . Fabnet Peak Effective % . | . . . . . . Robots Rewired 1 | . . . . . 1 Allies Hacked . | . . . . . . Hacks Repelled . | . . . . . . Allies | -11 -10 -9 -9 -7 -6 -------- Run | Jun Mat Mat Min Zio Pro Total Allies 12 | . . . . 11 1 Largest Group 12 | . . . . 11 12 Highest-Rated Group 363 | . . . . 334 363 Highest-Rated Ally 41 | . . . . 41 41 Total Orders . | . . . . . . Ally Attacks 59 | . . . . . 59 Total Damage 1115 | . . . . . 1115 Kills 8 | . . . . . 8 Allies Corrupted . | . . . . . . Allies Melted . | . . . . . . Intel | -11 -10 -9 -9 -7 -6 ------- Run | Jun Mat Mat Min Zio Pro Robot Analysis Total . | . . . . . . Derelict Logs Recovered 1 | . . . . 1 . Drone Launches . | . . . . . . Drone Recoveries . | . . . . . . Exploration | -11 -10 -9 -9 -7 -6 ------------- Run | Jun Mat Mat Min Zio Pro Turns Passed 1212 | 11 25 27 14 946 189 Spaces Moved 1338 | 23 50 54 28 982 201 Core 332 | 23 50 54 28 155 22 Treads . | . . . . . . Legs . | . . . . . . Wheels . | . . . . . . Hover 1006 | . . . . 827 179 Flight . | . . . . . . Fastest Speed 50 | 50 50 50 50 50 50 Average Speed 69 | 50 50 50 50 71 73 Slowest Speed 160 | 50 50 50 50 80 160 Overloaded Moves . | . . . . . . Propulsion Burnouts . | . . . . . . Robots Hopped 3 | . . . . 3 . Cave-ins Triggered . | . . . . . . Exploration Rate (%) 28 | 3 15 11 21 89 31 Regions Visited 5 Branch Regions 3 Pre-discovered Areas 3 | . . . . 3 . Known Exits Taken 1 | . . 1 . . . Unknown Exits Taken 4 | 1 1 . 1 1 . Scrap Searched 2 | . . . . 2 . Spaces Dug . | . . . . . . Terrain Destroyed . | . . . . . . Melee . | . . . . . . Projectile . | . . . . . . AOE . | . . . . . . Terrain Rammed . | . . . . . . Walls Destroyed . | . . . . . . Machines Disabled . | . . . . . . Actions | -11 -10 -9 -9 -7 -6 --------- Run | Jun Mat Mat Min Zio Pro Total 1610 | 22 49 53 27 1217 242 Wait 264 | . . . . 230 34 Move 1328 | 22 49 53 27 976 201 Hop 2 | . . . . 2 . Pick Up 6 | . . . . 5 1 Fast Attach 3 | . . . . 3 . Attach 1 | . . . . 1 . Detach . | . . . . . . Swap . | . . . . . . Drop 2 | . . . . . 2 Fire . | . . . . . . Melee . | . . . . . . Ram . | . . . . . . Kick . | . . . . . . Crush . | . . . . . . Escape Stasis . | . . . . . . Rewire 4 | . . . . . 4 Trap . | . . . . . . Miscellaneous . | . . . . . . Route ------- -11/Junkyard -10/Materials -9/Materials (discovered 2 exits: *Min x2) -9/Mines (discovered 2 exits: [*Mat] / [*Zio]) -7/Zion -6/Proximity Caves History --------- Turn | Location | Event 6 | -11/Junkyard | Discovered new exit (range 15) 12 | -11/Junkyard | Entered Materials 29 | -10/Materials | Discovered new exit (range 11) 37 | -10/Materials | Entered another Materials area 37 | -9/Materials | Evolved 2 slots: Propulsion x1, Utility x1 54 | -9/Materials | Identified exit to Mines 64 | -9/Materials | Entered Mines 66 | -9/Mines | Met a Derelict bent on vengeance 70 | -9/Mines | Discovered new exit (range 5) 73 | -9/Mines | A Derelict revealed a hidden shortcut to a safe place 78 | -9/Mines | Entered Zion 132 | -7/Zion | Discovered new exit (range 15) 221 | -7/Zion | Learned Factory recycling unit intel 294 | -7/Zion | Gained Derelict followers 318 | -7/Zion | Build established: Mutant 320 | -7/Zion | Gained Derelict followers 462 | -7/Zion | Imprinted 464 | -7/Zion | Declared Zion's savior 523 | -7/Zion | Found CR-A16's Pointy Stick 631 | -7/Zion | Learned location of Data Miner (-6) 698 | -7/Zion | Build established: Hacker-Mutant 1024 | -7/Zion | Entered Proximity Caves 1024 | -6/Proximity Caves | Accompanied by 11 allies 1114 | -6/Proximity Caves | Attracted the attention of an 0b10 checkpoint 1205 | -6/Proximity Caves | Core integrity fell below 50% 1205 | -6/Proximity Caves | Spotted B-75 Beast 1211 | -6/Proximity Caves | Core integrity fell below 20% 1213 | -6/Proximity Caves | Destroyed by B-75 Beast with Magnetic Acceleration Cannon Last Messages --------------- 01084_ 6K-FOQ(l) destroyed. 01088_ Imp. Light Armor Plating fries itself beyond repair. 01088_ G-50 Soldier shuts down. 01090_ 0N-OHP(l) sneak attacks. 01090_ G-50 Soldier destroyed. 01091_ Rnf. Deuterium Engine fries itself beyond repair. 01093_ Mace fries itself beyond repair. 01106_ QA-86D(i) destroyed. 01114_ Y-54 Guardian: "INTERCEPTING UNREGISTERED DERELICT." 01119_ Y-54 Guardian heat damages Flak Gun, Imp. Heat Sink. 01119_ KF-XRB(i) destroyed. 01120_ Y-54 Guardian destroyed. 01135_ 0N-OHP(l) destroyed. 01137_ Soldier 5a destroyed. 01198_ Backup Propulsion III destroyed. 01201_ Dropped Mak. Power Source. 01202_ Dropped Tactical Coordination Suite. 01202_ S-27 Virus destroyed. 01204_ Backup Propulsion III destroyed. 01207_ Knocked back. Map ----- +----------------------------------------------------+ | ?????????????????????????????????????????????????? | | ?????????????????????????????????????????????????? | | ?????????????????????????????????????????????????? | | ?????????????????????????????????????????????????? | | ?????????????????????????????????????????????????? | | ?????????????????????????????????????????????????? | | ?????????????????????????????????????????????????? | | ?????????????????????????????????????????????????? | | ?????????????????????????????????????????????????? | | ?????????????????????????????????????????????????? | | ?????????????????????????????????????????????????? | | ?????????????????????????????????????????????????? | | ?????????????????????????????????????????????????? | | ?????????????????????????????????????????????????? | | ?????????????????????##??????????????????????????? | | ???????????????????### #?????????????????????????? | | ???????????????????? #????????????????????????? | | ???????????????????? ##??????????????????????? | | ????????????????????? $??????????????????????? | | ?????????????????????? ??????????????????????? | | ??????? ????????????? #??????????????????????? | | ???????? ????????????? #??????????????????????? | | ???####?# ???????####??# #??????????????????????? | | ??? ## ?????## #### #??????????????????????? | | ??? # ?????# ## ##?????????????????????? | | ??? #???## ### @%##????????????????????? | | ????? #### ## #????????????????????? | | ????????# ## ##???????????????????? | | ????????## "## ## #???????????????? | | ?????????# % #???????????????? | | ?????????# ## BB ##???????????????? | | ??????#### ##### BB ##????????????????? | | ###### " #???## ##?????????????????? | | # "%" # #????# ##??????????????????? | | ###### #????# #???????????????????? | | ????###*!#????## #### ??????????????????? | | #???## #???### ??? ?????????????????? | | ?# #??## #### ## ??####????????????????? | | ??# #### ### ### ?????????????????????? | | ?## ! ## #?# #????????????????????? | | ## [%= *% ## #? ##????????????????????? | | ####![[ #?? ###?????????????????????? | | ##??#!%= !=! ##?? ##???????????????????????? | | # ##???# * =%| ##??#?????????????????????????? | | ####????# ## ! ##???????????????????????????? | | ????????# ## ##??????????????????????????? | | ## ##??# ## ####???????????????????????? | | #??## ### ##??????????????????????? | | ! #??## ##### ### ##?????????????????????? | | #### ##?####?# ##????????????????????? | +----------------------------------------------------+ Best States ------------- Heat Dissipation 28 Energy Generation 15 Energy Capacity 170 Matter Stores 300 Matter Capacity 300 Sight Range 16 Terrain Scan Density 10 Evasion (%) 50 Offensive Hacking 11 Defensive Hacking 11 Item Schematics ----------------- Hvy. Rocket Launcher | -7/Zion | Archive Remote Shield | -7/Zion | Archive Imp. EM Pulse Cannon | -7/Zion | Archive Mak. Hover Unit | -7/Zion | Archive Imp. Deuterium Engine | -7/Zion | Archive Lgt. Fission Core | -7/Zion | Archive Mak. Hacking Suite | -7/Zion | Archive Recoil Nullifier | -7/Zion | Archive Imp. Plasma Cutter | -7/Zion | Archive Hyp. Gauss Rifle | -7/Zion | Archive Core Analyzer | -7/Zion | Archive Proton Cannon | -7/Zion | Archive Angular Momentum Engine | -7/Zion | Archive Remote Datajack | -7/Zion | Archive Robot Schematics ------------------ S-27 Virus | -7/Zion | Archive K-01 Serf | -7/Zion | Archive L-41 Fighter | -7/Zion | Archive Fabricated ------------ Nothing Alien Tech Used ----------------- None Achievements -------------- None Challenges ------------ None Game ------ Seed ClaymoresFireSuite Manual? 0 Play Time 00:10:40 Cumulative 245.7 hours Start 2023.05.28 @ 14:12:39 End 2023.05.28 @ 14:20:53 Sessions 1 Manual Loads 0 Difficulty Rogue Special Mode None Game No. 734 Rogue 734 Adventurer 0 Explorer 0 Win Type - Total 12 Types 8/0/2/2/0/0/0/0/0 Lore% 87 Gallery% 83 Achievement% 74 Wizard Run 0 Options --------- ASCII 0 Keyboard 0 Movement Mouse Keybinds 0 Fullscreen 1 Font 16/SmallcapsGlow Map View 75x55 Tactical HUD 1 Map Filters NONE Filters NONE Steam 1 RUN: afdd4c1a-77c4-4c4c-8a4b-3c501d7d641c